Workbook

Sheet Table
B3: Matches Played | C3: Matches Won | D3: Games Won | E3: Games Lost | F3: Points Won | G3: Points Lost | H3: Points Diff
A4: =Template!B9 -> Old Bulls Head | B4: =COUNT(INDIRECT(CONCATENATE("'",A4,"'!E:E"))) -> 14 | C4: =SUM(INDIRECT(CONCATENATE("'",A4,"'!I:I"))) -> 10 | D4: =SUM(INDIRECT(CONCATENATE("'",A4,"'!E:E"))) -> 38 | E4: =SUM(INDIRECT(CONCATENATE("'",A4,"'!F:F"))) -> 32 | F4: =SUM(INDIRECT(CONCATENATE("'",A4,"'!G:G"))) -> 735 | G4: =SUM(INDIRECT(CONCATENATE("'",A4,"'!H:H"))) -> 683 | H4: =F4-G4 -> 52
A5: =Template!B6 -> Drifters | B5: =COUNT(INDIRECT(CONCATENATE("'",A5,"'!E:E"))) -> 14 | C5: =SUM(INDIRECT(CONCATENATE("'",A5,"'!I:I"))) -> 9 | D5: =SUM(INDIRECT(CONCATENATE("'",A5,"'!E:E"))) -> 40 | E5: =SUM(INDIRECT(CONCATENATE("'",A5,"'!F:F"))) -> 30 | F5: =SUM(INDIRECT(CONCATENATE("'",A5,"'!G:G"))) -> 746 | G5: =SUM(INDIRECT(CONCATENATE("'",A5,"'!H:H"))) -> 638 | H5: =F5-G5 -> 108
A6: =Template!B8 -> Farmers Boy | B6: =COUNT(INDIRECT(CONCATENATE("'",A6,"'!E:E"))) -> 14 | C6: =SUM(INDIRECT(CONCATENATE("'",A6,"'!I:I"))) -> 9 | D6: =SUM(INDIRECT(CONCATENATE("'",A6,"'!E:E"))) -> 40 | E6: =SUM(INDIRECT(CONCATENATE("'",A6,"'!F:F"))) -> 30 | F6: =SUM(INDIRECT(CONCATENATE("'",A6,"'!G:G"))) -> 722 | G6: =SUM(INDIRECT(CONCATENATE("'",A6,"'!H:H"))) -> 653 | H6: =F6-G6 -> 69
A7: =Template!B7 -> George Bees | B7: =COUNT(INDIRECT(CONCATENATE("'",A7,"'!E:E"))) -> 14 | C7: =SUM(INDIRECT(CONCATENATE("'",A7,"'!I:I"))) -> 7 | D7: =SUM(INDIRECT(CONCATENATE("'",A7,"'!E:E"))) -> 42 | E7: =SUM(INDIRECT(CONCATENATE("'",A7,"'!F:F"))) -> 28 | F7: =SUM(INDIRECT(CONCATENATE("'",A7,"'!G:G"))) -> 741 | G7: =SUM(INDIRECT(CONCATENATE("'",A7,"'!H:H"))) -> 621 | H7: =F7-G7 -> 120
A8: =Template!B3 -> Brown Bear | B8: =COUNT(INDIRECT(CONCATENATE("'",A8,"'!E:E"))) -> 14 | C8: =SUM(INDIRECT(CONCATENATE("'",A8,"'!I:I"))) -> 6 | D8: =SUM(INDIRECT(CONCATENATE("'",A8,"'!E:E"))) -> 37 | E8: =SUM(INDIRECT(CONCATENATE("'",A8,"'!F:F"))) -> 33 | F8: =SUM(INDIRECT(CONCATENATE("'",A8,"'!G:G"))) -> 745 | G8: =SUM(INDIRECT(CONCATENATE("'",A8,"'!H:H"))) -> 717 | H8: =F8-G8 -> 28
A9: =Template!B10 -> Plough OldUns | B9: =COUNT(INDIRECT(CONCATENATE("'",A9,"'!E:E"))) -> 13 | C9: =SUM(INDIRECT(CONCATENATE("'",A9,"'!I:I"))) -> 6 | D9: =SUM(INDIRECT(CONCATENATE("'",A9,"'!E:E"))) -> 30 | E9: =SUM(INDIRECT(CONCATENATE("'",A9,"'!F:F"))) -> 35 | F9: =SUM(INDIRECT(CONCATENATE("'",A9,"'!G:G"))) -> 650 | G9: =SUM(INDIRECT(CONCATENATE("'",A9,"'!H:H"))) -> 655 | H9: =F9-G9 -> -5
A10: =Template!B11 -> Hen and Chickens | B10: =COUNT(INDIRECT(CONCATENATE("'",A10,"'!E:E"))) -> 14 | C10: =SUM(INDIRECT(CONCATENATE("'",A10,"'!I:I"))) -> 6 | D10: =SUM(INDIRECT(CONCATENATE("'",A10,"'!E:E"))) -> 30 | E10: =SUM(INDIRECT(CONCATENATE("'",A10,"'!F:F"))) -> 40 | F10: =SUM(INDIRECT(CONCATENATE("'",A10,"'!G:G"))) -> 635 | G10: =SUM(INDIRECT(CONCATENATE("'",A10,"'!H:H"))) -> 754 | H10: =F10-G10 -> -119
A11: =Template!B2 -> George A | B11: =COUNT(INDIRECT(CONCATENATE("'",A11,"'!E:E"))) -> 13 | C11: =SUM(INDIRECT(CONCATENATE("'",A11,"'!I:I"))) -> 2 | D11: =SUM(INDIRECT(CONCATENATE("'",A11,"'!E:E"))) -> 18 | E11: =SUM(INDIRECT(CONCATENATE("'",A11,"'!F:F"))) -> 47 | F11: =SUM(INDIRECT(CONCATENATE("'",A11,"'!G:G"))) -> 492 | G11: =SUM(INDIRECT(CONCATENATE("'",A11,"'!H:H"))) -> 745 | H11: =F11-G11 -> -253
A12: =Template!B4 -> Bye2 | B12: =COUNT(INDIRECT(CONCATENATE("'",A12,"'!E:E"))) -> 0 | C12: =SUM(INDIRECT(CONCATENATE("'",A12,"'!I:I"))) -> 0 | D12: =SUM(INDIRECT(CONCATENATE("'",A12,"'!E:E"))) -> 0 | E12: =SUM(INDIRECT(CONCATENATE("'",A12,"'!F:F"))) -> 0 | F12: =SUM(INDIRECT(CONCATENATE("'",A12,"'!G:G"))) -> 0 | G12: =SUM(INDIRECT(CONCATENATE("'",A12,"'!H:H"))) -> 0 | H12: =F12-G12 -> 0
A13: =Template!B5 -> Bye | B13: =COUNT(INDIRECT(CONCATENATE("'",A13,"'!E:E"))) -> 0 | C13: =SUM(INDIRECT(CONCATENATE("'",A13,"'!I:I"))) -> 0 | D13: =SUM(INDIRECT(CONCATENATE("'",A13,"'!E:E"))) -> 0 | E13: =SUM(INDIRECT(CONCATENATE("'",A13,"'!F:F"))) -> 0 | F13: =SUM(INDIRECT(CONCATENATE("'",A13,"'!G:G"))) -> 0 | G13: =SUM(INDIRECT(CONCATENATE("'",A13,"'!H:H"))) -> 0 | H13: =F13-G13 -> 0

Sheet George A
A2: Team | B2: =Template!B2 -> George A
K3: Check that there are enough points to win the games
A4: Date | B4: Week | C4: Home/Away | D4: Opponent | E4: Games Won | F4: Games lost | G4: Points For | H4: Points Against | I4: Match Won? | J4: Check that input numbers are within range | K4: Home | L4: Away
A5: =Template!B20 -> 08.05.2017 | B5: 1 | C5: Home | D5: =Template!B11 -> Hen and Chickens | E5: 2 | F5: =IF(E5="","",5-E5) -> 3 | G5: 46 | H5: 54 | I5: =IF(E5="","",IF(E5>2,1,0)) -> 0 | J5: =IF(E5="","",IF(OR(E5<0,E5>5,G5<0,G5>(5*13),H5<0,H5>(5*13)),"Number out of range error","Valid Scores entered")) -> Valid Scores entered | K5: =IF(E5="","",IF((E5*13>G5),"Error in submitting Games Won or Points Home","OK")) -> OK | L5: =IF(E5="","",IF((F5*13>H5),"Error in submitting Games Won or Points Away","OK")) -> OK
A6: =Template!B21 -> 15.05.2017 | B6: =B5+1 -> 2 | C6: Away | D6: =Template!B10 -> Plough OldUns | E6: =INDIRECT(CONCATENATE("'",$D6,"'!$F6")) ->  | G6: =INDIRECT(CONCATENATE("'",$D6,"'!H6")) -> 0 | H6: =INDIRECT(CONCATENATE("'",$D6,"'!G6")) -> 0 | I6: =IF(E6="","",IF(E6>2,1,0)) ->  | J6: =IF(E6="","",IF(OR(E6<0,E6>5,G6<0,G6>(5*13),H6<0,H6>(5*13)),"Number out of range error","Valid Scores entered")) ->  | K6: =IF(E6="","",IF((E6*13>G6),"Error in submitting Games Won or Points Home","OK")) ->  | L6: =IF(E6="","",IF((F6*13>H6),"Error in submitting Games Won or Points Away","OK")) -> 
A7: =Template!B22 -> 22.05.2017 | B7: =B6+1 -> 3 | C7: Home | D7: Old Bulls Head | E7: 2 | F7: 3 | G7: 52 | H7: 48 | I7: =IF(E7="","",IF(E7>2,1,0)) -> 0 | J7: =IF(E7="","",IF(OR(E7<0,E7>5,G7<0,G7>(5*13),H7<0,H7>(5*13)),"Number out of range error","Valid Scores entered")) -> Valid Scores entered | K7: =IF(E7="","",IF((E7*13>G7),"Error in submitting Games Won or Points Home","OK")) -> OK | L7: OK
A8: =Template!B23 -> 05.06.2017 | B8: 4 | C8: Away | D8: =Template!B8 -> Farmers Boy | E8: =INDIRECT(CONCATENATE("'",$D8,"'!$F8")) -> 1 | F8: 4 | G8: =INDIRECT(CONCATENATE("'",$D8,"'!H8")) -> 18 | H8: =INDIRECT(CONCATENATE("'",$D8,"'!G8")) -> 58 | I8: 0 | J8: Valid Scores entered | K8: OK | L8: OK
A9: =Template!B24 -> 12.06.2017 | B9: 5 | C9: Home | D9: =Template!B7 -> George Bees | E9: 3 | F9: 2 | G9: 46 | H9: 46 | I9: 1 | J9: Valid Scores entered | K9: OK | L9: OK
A10: =Template!B25 -> 19.06.2017 | B10: 6 | C10: Away | D10: =Template!C25 -> Drifters | E10: =INDIRECT(CONCATENATE("'",$D10,"'!$F10")) -> 1 | F10: 4 | G10: =INDIRECT(CONCATENATE("'",$D10,"'!H10")) -> 26 | H10: =INDIRECT(CONCATENATE("'",$D10,"'!G10")) -> 62 | I10: 0 | J10: Valid Scores entered | K10: OK | L10: OK
A11: =Template!B26 -> 26.06.2017 | B11: 7 | C11: Home | D11: =Template!D26 -> Bye
A12: =Template!B27 -> 03.07.2017 | B12: 8 | C12: Away | D12: =Template!C27 -> Bye2 | E12: =INDIRECT(CONCATENATE("'",$D12,"'!$F12")) ->  | G12: =INDIRECT(CONCATENATE("'",$D12,"'!H12")) -> 0 | H12: =INDIRECT(CONCATENATE("'",$D12,"'!G12")) -> 0
A13: =Template!B28 -> 10.07.2017 | B13: 9 | C13: Home | D13: =Template!D28 -> Brown Bear | E13: 0 | F13: 5 | G13: 31 | H13: 65 | I13: 0 | J13: Valid Scores entered | K13: OK | L13: OK
A14: =Template!B29 -> 17.07.2017 | B14: 10 | C14: Away | D14: =Template!C29 -> Hen and Chickens | E14: =INDIRECT(CONCATENATE("'",$D14,"'!$F14")) -> 2 | F14: 3 | G14: =INDIRECT(CONCATENATE("'",$D14,"'!H14")) -> 48 | H14: =INDIRECT(CONCATENATE("'",$D14,"'!G14")) -> 56 | I14: 0 | J14: Valid Scores entered | K14: OK | L14: OK
A15: =Template!B30 -> 24.07.2017 | B15: 11 | C15: Home | D15: =Template!D30 -> Plough OldUns | E15: 3 | F15: 2 | G15: 42 | H15: 52 | I15: 1 | J15: Valid Scores entered | K15: OK | L15: OK
A16: =Template!B31 -> 31.07.2017 | B16: 12 | C16: Away | D16: =Template!C31 -> Old Bulls Head | E16: =INDIRECT(CONCATENATE("'",$D16,"'!$F16")) -> 1 | F16: 4 | G16: =INDIRECT(CONCATENATE("'",$D16,"'!H16")) -> 23 | H16: =INDIRECT(CONCATENATE("'",$D16,"'!G16")) -> 59 | I16: 0 | J16: Valid Scores entered | K16: OK | L16: OK
A17: =Template!B32 -> 07.08.2017 | B17: 13 | C17: Home | D17: =Template!D32 -> Farmers Boy | E17: 2 | F17: 3 | G17: 42 | H17: 52 | I17: 0 | J17: Valid Scores entered | K17: OK | L17: OK
A18: =Template!B33 -> 14.08.2017 | B18: 14 | C18: Away | D18: =Template!C33 -> George Bees | E18: =INDIRECT(CONCATENATE("'",$D18,"'!$F18")) -> 0 | F18: 5 | G18: =INDIRECT(CONCATENATE("'",$D18,"'!H18")) -> 33 | H18: =INDIRECT(CONCATENATE("'",$D18,"'!G18")) -> 65 | I18: 0 | J18: Valid Scores entered | K18: OK | L18: OK
A19: =Template!B34 -> 21.08.2017 | B19: 15 | C19: Home | D19: =Template!D34 -> Drifters | E19: 0 | F19: 5 | G19: 28 | H19: 65 | I19: 0 | J19: Valid Scores entered | K19: OK | L19: OK
A20: =Template!B35 -> 04.09.2017 | B20: 16 | C20: Away | D20: =Template!C35 -> Bye | E20: =INDIRECT(CONCATENATE("'",$D20,"'!$F20")) ->  | G20: =INDIRECT(CONCATENATE("'",$D20,"'!H20")) -> 0 | H20: =INDIRECT(CONCATENATE("'",$D20,"'!G20")) -> 0
A21: =Template!B36 -> 11.09.2017 | B21: 17 | C21: Home | D21: =Template!D36 -> Bye2
A22: =Template!B37 -> 18.09.2017 | B22: 18 | C22: Away | D22: =Template!C37 -> Brown Bear | E22: =INDIRECT(CONCATENATE("'",$D22,"'!$F22")) -> 1 | F22: 4 | G22: =INDIRECT(CONCATENATE("'",$D22,"'!H22")) -> 57 | H22: =INDIRECT(CONCATENATE("'",$D22,"'!G22")) -> 63 | I22: 0 | J22: Valid Scores entered | K22: OK | L22: OK
C23: =CONCATENATE("Home Games:",COUNTIF(C5:C22,"Home")," Away Games:",COUNTIF(C5:C22,"Away")) -> Home Games:9 Away Games:9

Sheet Brown Bear
A2: Team | B2: =Template!B3 -> Brown Bear
K3: Check that there are enough points to win the games
A4: Date | B4: Week | C4: Home/Away | D4: Opponent | E4: Games Won | F4: Games lost | G4: Points For | H4: Points Against | I4: Match Won? | J4: Check that input numbers are within range | K4: Home | L4: Away
A5: =Template!B20 -> 08.05.2017 | B5: 1 | C5: Home | D5: =Template!C5 -> Plough OldUns | E5: 2 | F5: =IF(E5="","",5-E5) -> 3 | G5: 53 | H5: 61 | I5: =IF(E5="","",IF(E5>2,1,0)) -> 0 | J5: =IF(E5="","",IF(OR(E5<0,E5>5,G5<0,G5>(5*13),H5<0,H5>(5*13)),"Number out of range error","Valid Scores entered")) -> Valid Scores entered | K5: =IF(E5="","",IF((E5*13>G5),"Error in submitting Games Won or Points Home","OK")) -> OK | L5: =IF(E5="","",IF((F5*13>H5),"Error in submitting Games Won or Points Away","OK")) -> OK
A6: =Template!B21 -> 15.05.2017 | B6: =B5+1 -> 2 | C6: Away | D6: =Template!B9 -> Old Bulls Head | E6: =INDIRECT(CONCATENATE("'",$D6,"'!$F6")) -> 2 | F6: 3 | G6: =INDIRECT(CONCATENATE("'",$D6,"'!H6")) -> 56 | H6: =INDIRECT(CONCATENATE("'",$D6,"'!G6")) -> 50 | I6: =IF(E6="","",IF(E6>2,1,0)) -> 0 | J6: =IF(E6="","",IF(OR(E6<0,E6>5,G6<0,G6>(5*13),H6<0,H6>(5*13)),"Number out of range error","Valid Scores entered")) -> Valid Scores entered | K6: =IF(E6="","",IF((E6*13>G6),"Error in submitting Games Won or Points Home","OK")) -> OK | L6: =IF(E6="","",IF((F6*13>H6),"Error in submitting Games Won or Points Away","OK")) -> OK
A7: =Template!B22 -> 22.05.2017 | B7: =B6+1 -> 3 | C7: Home | D7: =Template!B8 -> Farmers Boy | E7: 2 | F7: 3 | G7: 51 | H7: 44 | I7: 0 | J7: Valid Scores entered | K7: OK | L7: OK
A8: =Template!B23 -> 05.06.2017 | B8: 4 | C8: Away | D8: =Template!B7 -> George Bees | E8: =INDIRECT(CONCATENATE("'",$D8,"'!$F8")) -> 1 | F8: 4 | G8: =INDIRECT(CONCATENATE("'",$D8,"'!H8")) -> 46 | H8: =INDIRECT(CONCATENATE("'",$D8,"'!G8")) -> 60 | I8: 0 | J8: Valid Scores entered | K8: OK | L8: OK
A9: =Template!B24 -> 12.06.2017 | B9: 5 | C9: Home | D9: =Template!B6 -> Drifters | E9: 5 | F9: 0 | G9: 65 | H9: 50 | I9: 1 | J9: Valid Scores entered | K9: OK | L9: OK
A10: =Template!B25 -> 19.06.2017 | B10: 6 | C10: Away | D10: =Template!B5 -> Bye | E10: =INDIRECT(CONCATENATE("'",$D10,"'!$F10")) ->  | G10: =INDIRECT(CONCATENATE("'",$D10,"'!H10")) -> 0 | H10: =INDIRECT(CONCATENATE("'",$D10,"'!G10")) -> 0
A11: =Template!B26 -> 26.06.2017 | B11: 7 | C11: Home | D11: =Template!B4 -> Bye2
A12: =Template!B27 -> 03.07.2017 | B12: 8 | C12: Home | D12: =Template!B11 -> Hen and Chickens | E12: 4 | F12: 1 | G12: 59 | H12: 45 | I12: 1 | J12: Valid Scores entered | K12: OK | L12: OK
A13: =Template!B28 -> 10.07.2017 | B13: 9 | C13: Away | D13: =Template!B2 -> George A | E13: =INDIRECT(CONCATENATE("'",$D13,"'!$F13")) -> 5 | F13: 0 | G13: =INDIRECT(CONCATENATE("'",$D13,"'!H13")) -> 65 | H13: =INDIRECT(CONCATENATE("'",$D13,"'!G13")) -> 31 | I13: 1 | J13: Valid Scores entered | K13: OK | L13: OK
A14: =Template!B29 -> 17.07.2017 | B14: 10 | C14: Away | D14: =Template!B10 -> Plough OldUns | E14: =INDIRECT(CONCATENATE("'",$D14,"'!$F14")) -> 4 | F14: 1 | G14: =INDIRECT(CONCATENATE("'",$D14,"'!H14")) -> 58 | H14: =INDIRECT(CONCATENATE("'",$D14,"'!G14")) -> 40 | I14: 1 | J14: Valid Scores entered | K14: OK | L14: OK
A15: =Template!B30 -> 24.07.2017 | B15: 11 | C15: Home | D15: =Template!B9 -> Old Bulls Head | E15: 1 | F15: 4 | G15: 54 | H15: 64 | I15: 0 | J15: Valid Scores entered | K15: OK | L15: OK
A16: =Template!B31 -> 31.07.2017 | B16: 12 | C16: Away | D16: =Template!B8 -> Farmers Boy | E16: =INDIRECT(CONCATENATE("'",$D16,"'!$F16")) -> 1 | F16: 4 | G16: =INDIRECT(CONCATENATE("'",$D16,"'!H16")) -> 37 | H16: =INDIRECT(CONCATENATE("'",$D16,"'!G16")) -> 53 | I16: 0 | J16: Valid Scores entered | K16: OK | L16: OK
A17: =Template!B32 -> 07.08.2017 | B17: 13 | C17: Home | D17: =Template!B7 -> George Bees | E17: 2 | F17: 3 | G17: 43 | H17: 55 | I17: 0 | J17: Valid Scores entered | K17: OK | L17: OK
A18: =Template!B33 -> 14.08.2017 | B18: 14 | C18: Away | D18: =Template!B6 -> Drifters | E18: =INDIRECT(CONCATENATE("'",$D18,"'!$F18")) -> 3 | F18: 2 | G18: =INDIRECT(CONCATENATE("'",$D18,"'!H18")) -> 45 | H18: =INDIRECT(CONCATENATE("'",$D18,"'!G18")) -> 47 | I18: 1 | J18: Valid Scores entered | K18: OK | L18: OK
A19: =Template!B34 -> 21.08.2017 | B19: 15 | C19: Home | D19: =Template!B5 -> Bye
A20: =Template!B35 -> 04.09.2017 | B20: 16 | C20: Away | D20: =Template!B4 -> Bye2 | E20: =INDIRECT(CONCATENATE("'",$D20,"'!$F20")) ->  | G20: =INDIRECT(CONCATENATE("'",$D20,"'!H20")) -> 0 | H20: =INDIRECT(CONCATENATE("'",$D20,"'!G20")) -> 0
A21: =Template!B36 -> 11.09.2017 | B21: 17 | C21: Away | D21: =Template!K36 -> Hen and Chickens | E21: =INDIRECT(CONCATENATE("'",$D21,"'!$F21")) -> 1 | F21: 4 | G21: =INDIRECT(CONCATENATE("'",$D21,"'!H21")) -> 50 | H21: =INDIRECT(CONCATENATE("'",$D21,"'!G21")) -> 60 | I21: 0 | J21: Valid Scores entered | K21: OK | L21: OK
A22: =Template!B37 -> 18.09.2017 | B22: 18 | C22: Home | D22: =Template!B2 -> George A | E22: 4 | F22: 1 | G22: 63 | H22: 57 | I22: 1 | J22: Valid Scores entered | K22: OK | L22: OK
C23: =CONCATENATE("Home Games:",COUNTIF(C5:C22,"Home")," Away Games:",COUNTIF(C5:C22,"Away")) -> Home Games:9 Away Games:9

Sheet Bye2
A2: Team | B2: =Template!B4 -> Bye2
K3: Check that there are enough points to win the games
A4: Date | B4: Week | C4: Home/Away | D4: Opponent | E4: Games Won | F4: Games lost | G4: Points For | H4: Points Against | I4: Match Won? | J4: Check that input numbers are within range | K4: Home | L4: Away
A5: =Template!B20 -> 08.05.2017 | B5: 1 | C5: Home | D5: =Template!H20 -> Old Bulls Head | F5: =IF(E5="","",5-E5) ->  | I5: =IF(E5="","",IF(E5>2,1,0)) ->  | J5: =IF(E5="","",IF(OR(E5<0,E5>5,G5<0,G5>(5*13),H5<0,H5>(5*13)),"Number out of range error","Valid Scores entered")) ->  | K5: =IF(E5="","",IF((E5*13>G5),"Error in submitting Games Won or Points Home","OK")) ->  | L5: =IF(E5="","",IF((F5*13>H5),"Error in submitting Games Won or Points Away","OK")) -> 
A6: =Template!B21 -> 15.05.2017 | B6: =B5+1 -> 2 | C6: Away | D6: =Template!G21 -> Farmers Boy | E6: =INDIRECT(CONCATENATE("'",$D6,"'!$F6")) ->  | G6: =INDIRECT(CONCATENATE("'",$D6,"'!H6")) -> 0 | H6: =INDIRECT(CONCATENATE("'",$D6,"'!G6")) -> 0 | I6: =IF(E6="","",IF(E6>2,1,0)) ->  | J6: =IF(E6="","",IF(OR(E6<0,E6>5,G6<0,G6>(5*13),H6<0,H6>(5*13)),"Number out of range error","Valid Scores entered")) ->  | K6: =IF(E6="","",IF((E6*13>G6),"Error in submitting Games Won or Points Home","OK")) ->  | L6: =IF(E6="","",IF((F6*13>H6),"Error in submitting Games Won or Points Away","OK")) -> 
A7: =Template!B22 -> 22.05.2017 | B7: =B6+1 -> 3 | C7: Home | D7: =Template!H22 -> George Bees
A8: =Template!B23 -> 05.06.2017 | B8: 4 | C8: Away | D8: =Template!G23 -> Drifters | E8: =INDIRECT(CONCATENATE("'",$D8,"'!$F8")) ->  | G8: =INDIRECT(CONCATENATE("'",$D8,"'!H8")) -> 0 | H8: =INDIRECT(CONCATENATE("'",$D8,"'!G8")) -> 0
A9: =Template!B24 -> 12.06.2017 | B9: 5 | C9: Home | D9: =Template!H24 -> Bye
A10: =Template!B25 -> 19.06.2017 | B10: 6 | C10: Home | D10: =Template!L25 -> Hen and Chickens
A11: =Template!B26 -> 26.06.2017 | B11: 7 | C11: Away | D11: =Template!E26 -> Brown Bear | E11: =INDIRECT(CONCATENATE("'",$D11,"'!$F11")) ->  | F11: =IF(E11="","",5-E11) ->  | G11: =INDIRECT(CONCATENATE("'",$D11,"'!H11")) -> 0 | H11: =INDIRECT(CONCATENATE("'",$D11,"'!G11")) -> 0 | I11: =IF(E11="","",IF(E11>2,1,0)) ->  | J11: =IF(E11="","",IF(OR(E11<0,E11>5,G11<0,G11>(5*13),H11<0,H11>(5*13)),"Number out of range error","Valid Scores entered")) ->  | K11: =IF(E11="","",IF((E11*13>G11),"Error in submitting Games Won or Points Home","OK")) ->  | L11: =IF(E11="","",IF((F11*13>H11),"Error in submitting Games Won or Points Away","OK")) -> 
A12: =Template!B27 -> 03.07.2017 | B12: 8 | C12: Home | D12: =Template!D27 -> George A
A13: =Template!B28 -> 10.07.2017 | B13: 9 | C13: Away | D13: =Template!I28 -> Plough OldUns | E13: =INDIRECT(CONCATENATE("'",$D13,"'!$F13")) ->  | G13: =INDIRECT(CONCATENATE("'",$D13,"'!H13")) -> 0 | H13: =INDIRECT(CONCATENATE("'",$D13,"'!G13")) -> 0
A14: =Template!B29 -> 17.07.2017 | B14: 10 | C14: Away | D14: =Template!G29 -> Old Bulls Head | E14: =INDIRECT(CONCATENATE("'",$D14,"'!$F14")) ->  | F14: =IF(E14="","",5-E14) ->  | G14: =INDIRECT(CONCATENATE("'",$D14,"'!H14")) -> 0 | H14: =INDIRECT(CONCATENATE("'",$D14,"'!G14")) -> 0 | I14: =IF(E14="","",IF(E14>2,1,0)) ->  | J14: =IF(E14="","",IF(OR(E14<0,E14>5,G14<0,G14>(5*13),H14<0,H14>(5*13)),"Number out of range error","Valid Scores entered")) ->  | K14: =IF(E14="","",IF((E14*13>G14),"Error in submitting Games Won or Points Home","OK")) ->  | L14: =IF(E14="","",IF((F14*13>H14),"Error in submitting Games Won or Points Away","OK")) -> 
A15: =Template!B30 -> 24.07.2017 | B15: 11 | C15: Home | D15: =Template!H30 -> Farmers Boy
A16: =Template!B31 -> 31.07.2017 | B16: 12 | C16: Away | D16: =Template!G31 -> George Bees | E16: =INDIRECT(CONCATENATE("'",$D16,"'!$F16")) ->  | G16: =INDIRECT(CONCATENATE("'",$D16,"'!H16")) -> 0 | H16: =INDIRECT(CONCATENATE("'",$D16,"'!G16")) -> 0
A17: =Template!B32 -> 07.08.2017 | B17: 13 | C17: Home | D17: =Template!H32 -> Drifters
A18: =Template!B33 -> 14.08.2017 | B18: 14 | C18: Away | D18: =Template!G33 -> Bye | E18: =INDIRECT(CONCATENATE("'",$D18,"'!$F18")) ->  | G18: =INDIRECT(CONCATENATE("'",$D18,"'!H18")) -> 0 | H18: =INDIRECT(CONCATENATE("'",$D18,"'!G18")) -> 0
A19: =Template!B34 -> 21.08.2017 | B19: 15 | C19: Away | D19: =Template!K34 -> Hen and Chickens | E19: =INDIRECT(CONCATENATE("'",$D19,"'!$F19")) ->  | G19: =INDIRECT(CONCATENATE("'",$D19,"'!H19")) -> 0 | H19: =INDIRECT(CONCATENATE("'",$D19,"'!G19")) -> 0
A20: =Template!B35 -> 04.09.2017 | B20: 16 | C20: Home | D20: =Template!F35 -> Brown Bear
A21: =Template!B36 -> 11.09.2017 | B21: 17 | C21: Away | D21: =Template!C36 -> George A | E21: =INDIRECT(CONCATENATE("'",$D21,"'!$F21")) ->  | G21: =INDIRECT(CONCATENATE("'",$D21,"'!H21")) -> 0 | H21: =INDIRECT(CONCATENATE("'",$D21,"'!G21")) -> 0
A22: =Template!B37 -> 18.09.2017 | B22: 18 | C22: Home | D22: =Template!J37 -> Plough OldUns
C23: =CONCATENATE("Home Games:",COUNTIF(C5:C22,"Home")," Away Games:",COUNTIF(C5:C22,"Away")) -> Home Games:9 Away Games:9

Sheet Bye
A2: Team | B2: =Template!B5 -> Bye
K3: Check that there are enough points to win the games
A4: Date | B4: Week | C4: Home/Away | D4: Opponent | E4: Games Won | F4: Games lost | G4: Points For | H4: Points Against | I4: Match Won? | J4: Check that input numbers are within range | K4: Home | L4: Away
A5: =Template!B20 -> 08.05.2017 | B5: 1 | C5: Home | D5: =Template!J20 -> Farmers Boy | F5: =IF(E5="","",5-E5) ->  | I5: =IF(E5="","",IF(E5>2,1,0)) ->  | J5: =IF(E5="","",IF(OR(E5<0,E5>5,G5<0,G5>(5*13),H5<0,H5>(5*13)),"Number out of range error","Valid Scores entered")) ->  | K5: =IF(E5="","",IF((E5*13>G5),"Error in submitting Games Won or Points Home","OK")) ->  | L5: =IF(E5="","",IF((F5*13>H5),"Error in submitting Games Won or Points Away","OK")) -> 
A6: =Template!B21 -> 15.05.2017 | B6: =B5+1 -> 2 | C6: Away | D6: =Template!I21 -> George Bees | E6: =INDIRECT(CONCATENATE("'",$D6,"'!$F6")) ->  | G6: =INDIRECT(CONCATENATE("'",$D6,"'!H6")) -> 0 | H6: =INDIRECT(CONCATENATE("'",$D6,"'!G6")) -> 0 | I6: =IF(E6="","",IF(E6>2,1,0)) ->  | J6: =IF(E6="","",IF(OR(E6<0,E6>5,G6<0,G6>(5*13),H6<0,H6>(5*13)),"Number out of range error","Valid Scores entered")) ->  | K6: =IF(E6="","",IF((E6*13>G6),"Error in submitting Games Won or Points Home","OK")) ->  | L6: =IF(E6="","",IF((F6*13>H6),"Error in submitting Games Won or Points Away","OK")) -> 
A7: =Template!B22 -> 22.05.2017 | B7: =B6+1 -> 3 | C7: Home | D7: =Template!J22 -> Drifters
A8: =Template!B23 -> 05.06.2017 | B8: 4 | C8: Home | D8: =Template!L23 -> Hen and Chickens
A9: =Template!B24 -> 12.06.2017 | B9: 5 | C9: Away | D9: =Template!G24 -> Bye2 | E9: =INDIRECT(CONCATENATE("'",$D9,"'!$F9")) ->  | G9: =INDIRECT(CONCATENATE("'",$D9,"'!H9")) -> 0 | H9: =INDIRECT(CONCATENATE("'",$D9,"'!G9")) -> 0
A10: =Template!B25 -> 19.06.2017 | B10: 6 | C10: Home | D10: =Template!F25 -> Brown Bear
A11: =Template!B26 -> 26.06.2017 | B11: 7 | C11: Away | D11: =Template!C26 -> George A | E11: =INDIRECT(CONCATENATE("'",$D11,"'!$F11")) ->  | G11: =INDIRECT(CONCATENATE("'",$D11,"'!H11")) -> 0 | H11: =INDIRECT(CONCATENATE("'",$D11,"'!G11")) -> 0
A12: =Template!B27 -> 03.07.2017 | B12: 8 | C12: Home | D12: =Template!J27 -> Plough OldUns
A13: =Template!B28 -> 10.07.2017 | B13: 9 | C13: Away | D13: =Template!G28 -> Old Bulls Head | E13: =INDIRECT(CONCATENATE("'",$D13,"'!$F13")) ->  | G13: =INDIRECT(CONCATENATE("'",$D13,"'!H13")) -> 0 | H13: =INDIRECT(CONCATENATE("'",$D13,"'!G13")) -> 0
A14: =Template!B29 -> 17.07.2017 | B14: 10 | C14: Away | D14: =Template!I29 -> Farmers Boy | E14: =INDIRECT(CONCATENATE("'",$D14,"'!$F14")) ->  | G14: =INDIRECT(CONCATENATE("'",$D14,"'!H14")) -> 0 | H14: =INDIRECT(CONCATENATE("'",$D14,"'!G14")) -> 0
A15: =Template!B30 -> 24.07.2017 | B15: 11 | C15: Home | D15: =Template!J30 -> George Bees
A16: =Template!B31 -> 31.07.2017 | B16: 12 | C16: Away | D16: =Template!I31 -> Drifters | E16: =INDIRECT(CONCATENATE("'",$D16,"'!$F16")) ->  | G16: =INDIRECT(CONCATENATE("'",$D16,"'!H16")) -> 0 | H16: =INDIRECT(CONCATENATE("'",$D16,"'!G16")) -> 0
A17: =Template!B32 -> 07.08.2017 | B17: 13 | C17: Away | D17: =Template!K32 -> Hen and Chickens
A18: =Template!B33 -> 14.08.2017 | B18: 14 | C18: Home | D18: =Template!H33 -> Bye2
A19: =Template!B34 -> 21.08.2017 | B19: 15 | C19: Away | D19: =Template!E34 -> Brown Bear | E19: =INDIRECT(CONCATENATE("'",$D19,"'!$F19")) ->  | G19: =INDIRECT(CONCATENATE("'",$D19,"'!H19")) -> 0 | H19: =INDIRECT(CONCATENATE("'",$D19,"'!G19")) -> 0
A20: =Template!B35 -> 04.09.2017 | B20: 16 | C20: Home | D20: =Template!D35 -> George A
A21: =Template!B36 -> 11.09.2017 | B21: 17 | C21: Away | D21: =Template!I36 -> Plough OldUns | E21: =INDIRECT(CONCATENATE("'",$D21,"'!$F21")) ->  | G21: =INDIRECT(CONCATENATE("'",$D21,"'!H21")) -> 0 | H21: =INDIRECT(CONCATENATE("'",$D21,"'!G21")) -> 0
A22: =Template!B37 -> 18.09.2017 | B22: 18 | C22: Home | D22: =Template!H37 -> Old Bulls Head
C23: =CONCATENATE("Home Games:",COUNTIF(C5:C22,"Home")," Away Games:",COUNTIF(C5:C22,"Away")) -> Home Games:9 Away Games:9

Sheet Drifters
A2: Team | B2: =Template!B6 -> Drifters
K3: Check that there are enough points to win the games
A4: Date | B4: Week | C4: Home/Away | D4: Opponent | E4: Games Won | F4: Games lost | G4: Points For | H4: Points Against | I4: Match Won? | J4: Check that input numbers are within range | K4: Home | L4: Away
A5: =Template!B20 -> 08.05.2017 | B5: 1 | C5: Home | D5: =Template!L20 -> George Bees | E5: 3 | F5: =IF(E5="","",5-E5) -> 2 | G5: 59 | H5: 40 | I5: =IF(E5="","",IF(E5>2,1,0)) -> 1 | J5: =IF(E5="","",IF(OR(E5<0,E5>5,G5<0,G5>(5*13),H5<0,H5>(5*13)),"Number out of range error","Valid Scores entered")) -> Valid Scores entered | K5: =IF(E5="","",IF((E5*13>G5),"Error in submitting Games Won or Points Home","OK")) -> OK | L5: =IF(E5="","",IF((F5*13>H5),"Error in submitting Games Won or Points Away","OK")) -> OK
A6: =Template!B21 -> 15.05.2017 | B6: =B5+1 -> 2 | C6: Away | D6: =Template!K21 -> Hen and Chickens | E6: =INDIRECT(CONCATENATE("'",$D6,"'!$F6")) -> 3 | F6: 2 | G6: =INDIRECT(CONCATENATE("'",$D6,"'!H6")) -> 50 | H6: =INDIRECT(CONCATENATE("'",$D6,"'!G6")) -> 40 | I6: =IF(E6="","",IF(E6>2,1,0)) -> 1 | J6: =IF(E6="","",IF(OR(E6<0,E6>5,G6<0,G6>(5*13),H6<0,H6>(5*13)),"Number out of range error","Valid Scores entered")) -> Valid Scores entered | K6: =IF(E6="","",IF((E6*13>G6),"Error in submitting Games Won or Points Home","OK")) -> OK | L6: =IF(E6="","",IF((F6*13>H6),"Error in submitting Games Won or Points Away","OK")) -> OK
A7: =Template!B22 -> 22.05.2017 | B7: =B6+1 -> 3 | C7: Away | D7: =Template!I22 -> Bye | E7: =INDIRECT(CONCATENATE("'",$D7,"'!$F7")) ->  | G7: =INDIRECT(CONCATENATE("'",$D7,"'!H7")) -> 0 | H7: =INDIRECT(CONCATENATE("'",$D7,"'!G7")) -> 0
A8: =Template!B23 -> 05.06.2017 | B8: 4 | C8: Home | D8: =Template!H23 -> Bye2
A9: =Template!B24 -> 12.06.2017 | B9: 5 | C9: Away | D9: =Template!E24 -> Brown Bear | E9: =INDIRECT(CONCATENATE("'",$D9,"'!$F9")) -> 0 | F9: 5 | G9: =INDIRECT(CONCATENATE("'",$D9,"'!H9")) -> 50 | H9: =INDIRECT(CONCATENATE("'",$D9,"'!G9")) -> 65 | I9: 0 | J9: Valid Scores entered | K9: OK | L9: OK
A10: =Template!B25 -> 19.06.2017 | B10: 6 | C10: Home | D10: =Template!D25 -> George A | E10: 4 | F10: 1 | G10: 62 | H10: 26 | I10: 1 | J10: Valid Scores entered | K10: OK | L10: OK
A11: =Template!B26 -> 26.06.2017 | B11: 7 | C11: Away | D11: =Template!I26 -> Plough OldUns | E11: =INDIRECT(CONCATENATE("'",$D11,"'!$F11")) -> 2 | F11: 3 | G11: =INDIRECT(CONCATENATE("'",$D11,"'!H11")) -> 47 | H11: =INDIRECT(CONCATENATE("'",$D11,"'!G11")) -> 59 | I11: 0 | J11: Valid Scores entered | K11: OK | L11: OK
A12: =Template!B27 -> 03.07.2017 | B12: 8 | C12: Home | D12: =Template!H27 -> Old Bulls Head | E12: 5 | F12: 0 | G12: 65 | H12: 35 | I12: 1 | J12: Valid Scores entered | K12: OK | L12: OK
A13: =Template!B28 -> 10.07.2017 | B13: 9 | C13: Away | D13: =Template!E28 -> Farmers Boy | E13: =INDIRECT(CONCATENATE("'",$D13,"'!$F13")) -> 1 | F13: 4 | G13: =INDIRECT(CONCATENATE("'",$D13,"'!H13")) -> 37 | H13: =INDIRECT(CONCATENATE("'",$D13,"'!G13")) -> 61 | I13: 0 | J13: Valid Scores entered | K13: OK | L13: OK
A14: =Template!B29 -> 17.07.2017 | B14: 10 | C14: Away | D14: =Template!K29 -> George Bees | E14: =INDIRECT(CONCATENATE("'",$D14,"'!$F14")) -> 3 | F14: 2 | G14: =INDIRECT(CONCATENATE("'",$D14,"'!H14")) -> 52 | H14: =INDIRECT(CONCATENATE("'",$D14,"'!G14")) -> 51 | I14: 1 | J14: Valid Scores entered | K14: OK | L14: OK
A15: =Template!B30 -> 24.07.2017 | B15: 11 | C15: Home | D15: =Template!L30 -> Hen and Chickens | E15: 3 | F15: 2 | G15: 57 | H15: 44 | I15: 1 | J15: Valid Scores entered | K15: OK | L15: OK
A16: =Template!B31 -> 31.07.2017 | B16: 12 | C16: Home | D16: =Template!J31 -> Bye
A17: =Template!B32 -> 07.08.2017 | B17: 13 | C17: Away | D17: =Template!G32 -> Bye2 | E17: =INDIRECT(CONCATENATE("'",$D17,"'!$F17")) ->  | G17: =INDIRECT(CONCATENATE("'",$D17,"'!H17")) -> 0 | H17: =INDIRECT(CONCATENATE("'",$D17,"'!G17")) -> 0
A18: =Template!B33 -> 14.08.2017 | B18: 14 | C18: Home | D18: =Template!F33 -> Brown Bear | E18: 2 | F18: 3 | G18: 47 | H18: 45 | I18: 0 | J18: Valid Scores entered | K18: OK | L18: OK
A19: =Template!B34 -> 21.08.2017 | B19: 15 | C19: Away | D19: =Template!C34 -> George A | E19: =INDIRECT(CONCATENATE("'",$D19,"'!$F19")) -> 5 | F19: 0 | G19: =INDIRECT(CONCATENATE("'",$D19,"'!H19")) -> 65 | H19: =INDIRECT(CONCATENATE("'",$D19,"'!G19")) -> 28 | I19: 1 | J19: Valid Scores entered | K19: OK | L19: OK
A20: =Template!B35 -> 04.09.2017 | B20: 16 | C20: Home | D20: =Template!J35 -> Plough OldUns | E20: 4 | F20: 1 | G20: 55 | H20: 43 | I20: 1 | J20: Valid Scores entered | K20: OK | L20: OK
A21: =Template!B36 -> 11.09.2017 | B21: 17 | C21: Away | D21: =Template!G36 -> Old Bulls Head | E21: =INDIRECT(CONCATENATE("'",$D21,"'!$F21")) -> 2 | F21: 3 | G21: =INDIRECT(CONCATENATE("'",$D21,"'!H21")) -> 43 | H21: =INDIRECT(CONCATENATE("'",$D21,"'!G21")) -> 63 | I21: 0 | J21: Valid Scores entered | K21: OK | L21: OK
A22: =Template!B37 -> 18.09.2017 | B22: 18 | C22: Home | D22: =Template!F37 -> Farmers Boy | E22: 3 | F22: 2 | G22: 57 | H22: 38 | I22: 1 | J22: Valid Scores entered | K22: OK | L22: OK
C23: =CONCATENATE("Home Games:",COUNTIF(C5:C22,"Home")," Away Games:",COUNTIF(C5:C22,"Away")) -> Home Games:9 Away Games:9

Sheet George Bees
A2: Team | B2: =Template!B7 -> George Bees
K3: Check that there are enough points to win the games
A4: Date | B4: Week | C4: Home/Away | D4: Opponent | E4: Games Won | F4: Games lost | G4: Points For | H4: Points Against | I4: Match Won? | J4: Check that input numbers are within range | K4: Home | L4: Away
A5: =Template!B20 -> 08.05.2017 | B5: 1 | C5: Away | D5: =Template!K20 -> Drifters | E5: =INDIRECT(CONCATENATE("'",$D5,"'!$F5")) -> 2 | F5: =IF(E5="","",5-E5) -> 3 | G5: =INDIRECT(CONCATENATE("'",$D5,"'!H5")) -> 40 | H5: =INDIRECT(CONCATENATE("'",$D5,"'!G5")) -> 59 | I5: =IF(E5="","",IF(E5>2,1,0)) -> 0 | J5: =IF(E5="","",IF(OR(E5<0,E5>5,G5<0,G5>(5*13),H5<0,H5>(5*13)),"Number out of range error","Valid Scores entered")) -> Valid Scores entered | K5: =IF(E5="","",IF((E5*13>G5),"Error in submitting Games Won or Points Home","OK")) -> OK | L5: =IF(E5="","",IF((F5*13>H5),"Error in submitting Games Won or Points Away","OK")) -> OK
A6: =Template!B21 -> 15.05.2017 | B6: =B5+1 -> 2 | C6: Home | D6: =Template!J21 -> Bye | I6: =IF(E6="","",IF(E6>2,1,0)) ->  | J6: =IF(E6="","",IF(OR(E6<0,E6>5,G6<0,G6>(5*13),H6<0,H6>(5*13)),"Number out of range error","Valid Scores entered")) ->  | K6: =IF(E6="","",IF((E6*13>G6),"Error in submitting Games Won or Points Home","OK")) ->  | L6: =IF(E6="","",IF((F6*13>H6),"Error in submitting Games Won or Points Away","OK")) -> 
A7: =Template!B22 -> 22.05.2017 | B7: =B6+1 -> 3 | C7: Away | D7: =Template!G22 -> Bye2 | E7: =INDIRECT(CONCATENATE("'",$D7,"'!$F7")) ->  | G7: =INDIRECT(CONCATENATE("'",$D7,"'!H7")) -> 0 | H7: =INDIRECT(CONCATENATE("'",$D7,"'!G7")) -> 0
A8: =Template!B23 -> 05.06.2017 | B8: 4 | C8: Home | D8: =Template!F23 -> Brown Bear | E8: 4 | F8: 1 | G8: 60 | H8: 46 | I8: 1 | J8: Valid Scores entered | K8: OK | L8: OK
A9: =Template!B24 -> 12.06.2017 | B9: 5 | C9: Away | D9: =Template!C24 -> George A | E9: =INDIRECT(CONCATENATE("'",$D9,"'!$F9")) -> 2 | F9: 3 | G9: =INDIRECT(CONCATENATE("'",$D9,"'!H9")) -> 46 | H9: =INDIRECT(CONCATENATE("'",$D9,"'!G9")) -> 46 | I9: 0 | J9: Valid Scores entered | K9: OK | L9: OK
A10: =Template!B25 -> 19.06.2017 | B10: 6 | C10: Home | D10: =Template!J25 -> Plough OldUns | E10: 4 | F10: 1 | G10: 59 | H10: 40 | I10: 1 | J10: Valid Scores entered | K10: OK | L10: OK
A11: =Template!B26 -> 26.06.2017 | B11: 7 | C11: Away | D11: =Template!G26 -> Old Bulls Head | E11: =INDIRECT(CONCATENATE("'",$D11,"'!$F11")) -> 2 | F11: 3 | G11: =INDIRECT(CONCATENATE("'",$D11,"'!H11")) -> 49 | H11: =INDIRECT(CONCATENATE("'",$D11,"'!G11")) -> 51 | I11: 0 | J11: Valid Scores entered | K11: OK | L11: OK
A12: =Template!B27 -> 03.07.2017 | B12: 8 | C12: Home | D12: =Template!F27 -> Farmers Boy | E12: 5 | F12: 0 | G12: 65 | H12: 26 | I12: 1 | J12: Valid Scores entered | K12: OK | L12: OK
A13: =Template!B28 -> 10.07.2017 | B13: 9 | C13: Away | D13: =Template!K28 -> Hen and Chickens | E13: =INDIRECT(CONCATENATE("'",$D13,"'!$F13")) -> 1 | F13: 4 | G13: =INDIRECT(CONCATENATE("'",$D13,"'!H13")) -> 41 | H13: =INDIRECT(CONCATENATE("'",$D13,"'!G13")) -> 52 | I13: 0 | J13: Valid Scores entered | K13: OK | L13: OK
A14: =Template!B29 -> 17.07.2017 | B14: 10 | C14: Home | D14: =Template!L29 -> Drifters | E14: 2 | F14: 3 | G14: 51 | H14: 52 | I14: 0 | J14: Valid Scores entered | K14: OK | L14: OK
A15: =Template!B30 -> 24.07.2017 | B15: 11 | C15: Away | D15: =Template!I30 -> Bye | E15: =INDIRECT(CONCATENATE("'",$D15,"'!$F15")) ->  | G15: =INDIRECT(CONCATENATE("'",$D15,"'!H15")) -> 0 | H15: =INDIRECT(CONCATENATE("'",$D15,"'!G15")) -> 0
A16: =Template!B31 -> 31.07.2017 | B16: 12 | C16: Home | D16: =Template!H31 -> Bye2
A17: =Template!B32 -> 07.08.2017 | B17: 13 | C17: Away | D17: =Template!E32 -> Brown Bear | E17: =INDIRECT(CONCATENATE("'",$D17,"'!$F17")) -> 3 | F17: 2 | G17: =INDIRECT(CONCATENATE("'",$D17,"'!H17")) -> 55 | H17: =INDIRECT(CONCATENATE("'",$D17,"'!G17")) -> 43 | I17: 1 | J17: Valid Scores entered | K17: OK | L17: OK
A18: =Template!B33 -> 14.08.2017 | B18: 14 | C18: Home | D18: =Template!D33 -> George A | E18: 5 | F18: 0 | G18: 65 | H18: 33 | I18: 1 | J18: Valid Scores entered | K18: OK | L18: OK
A19: =Template!B34 -> 21.08.2017 | B19: 15 | C19: Away | D19: =Template!I34 -> Plough OldUns | E19: =INDIRECT(CONCATENATE("'",$D19,"'!$F19")) -> 2 | F19: 3 | G19: =INDIRECT(CONCATENATE("'",$D19,"'!H19")) -> 49 | H19: =INDIRECT(CONCATENATE("'",$D19,"'!G19")) -> 51 | I19: 0 | J19: Valid Scores entered | K19: OK | L19: OK
A20: =Template!B35 -> 04.09.2017 | B20: 16 | C20: Home | D20: =Template!H35 -> Old Bulls Head | E20: 2 | F20: 3 | G20: 37 | H20: 57 | I20: 0 | J20: Valid Scores entered | K20: OK | L20: OK
A21: =Template!B36 -> 11.09.2017 | B21: 17 | C21: Away | D21: =Template!E36 -> Farmers Boy | E21: =INDIRECT(CONCATENATE("'",$D21,"'!$F21")) -> 4 | F21: 1 | G21: =INDIRECT(CONCATENATE("'",$D21,"'!H21")) -> 61 | H21: =INDIRECT(CONCATENATE("'",$D21,"'!G21")) -> 43 | I21: 1 | J21: Valid Scores entered | K21: OK | L21: OK
A22: =Template!B37 -> 18.09.2017 | B22: 18 | C22: Home | D22: =Template!L37 -> Hen and Chickens | E22: 4 | F22: 1 | G22: 63 | H22: 22 | I22: 1 | J22: Valid Scores entered | K22: OK | L22: OK
C23: =CONCATENATE("Home Games:",COUNTIF(C5:C22,"Home")," Away Games:",COUNTIF(C5:C22,"Away")) -> Home Games:9 Away Games:9

Sheet Farmers Boy
A2: Team | B2: =Template!B8 -> Farmers Boy
K3: Check that there are enough points to win the games
A4: Date | B4: Week | C4: Home/Away | D4: Opponent | E4: Games Won | F4: Games lost | G4: Points For | H4: Points Against | I4: Match Won? | J4: Check that input numbers are within range | K4: Home | L4: Away
A5: =Template!B20 -> 08.05.2017 | B5: 1 | C5: Away | D5: =Template!I20 -> Bye | E5: =INDIRECT(CONCATENATE("'",$D5,"'!$F5")) ->  | F5: =IF(E5="","",5-E5) ->  | G5: =INDIRECT(CONCATENATE("'",$D5,"'!H5")) -> 0 | H5: =INDIRECT(CONCATENATE("'",$D5,"'!G5")) -> 0 | I5: =IF(E5="","",IF(E5>2,1,0)) ->  | J5: =IF(E5="","",IF(OR(E5<0,E5>5,G5<0,G5>(5*13),H5<0,H5>(5*13)),"Number out of range error","Valid Scores entered")) ->  | K5: =IF(E5="","",IF((E5*13>G5),"Error in submitting Games Won or Points Home","OK")) ->  | L5: =IF(E5="","",IF((F5*13>H5),"Error in submitting Games Won or Points Away","OK")) -> 
A6: =Template!B21 -> 15.05.2017 | B6: =B5+1 -> 2 | C6: Home | D6: =Template!H21 -> Bye2 | F6: =IF(E6="","",5-E6) ->  | I6: =IF(E6="","",IF(E6>2,1,0)) ->  | J6: =IF(E6="","",IF(OR(E6<0,E6>5,G6<0,G6>(5*13),H6<0,H6>(5*13)),"Number out of range error","Valid Scores entered")) ->  | K6: =IF(E6="","",IF((E6*13>G6),"Error in submitting Games Won or Points Home","OK")) ->  | L6: =IF(E6="","",IF((F6*13>H6),"Error in submitting Games Won or Points Away","OK")) -> 
A7: =Template!B22 -> 22.05.2017 | B7: =B6+1 -> 3 | C7: Away | D7: =Template!E22 -> Brown Bear | E7: =INDIRECT(CONCATENATE("'",$D7,"'!$F7")) -> 3 | F7: 2 | G7: =INDIRECT(CONCATENATE("'",$D7,"'!H7")) -> 44 | H7: =INDIRECT(CONCATENATE("'",$D7,"'!G7")) -> 51 | I7: 1 | J7: Valid Scores entered | K7: OK | L7: OK
A8: =Template!B23 -> 05.06.2017 | B8: 4 | C8: Home | D8: =Template!D23 -> George A | E8: 4 | F8: 1 | G8: 58 | H8: 18 | I8: 1 | J8: Valid Scores entered | K8: OK | L8: OK
A9: =Template!B24 -> 12.06.2017 | B9: 5 | C9: Away | D9: =Template!I24 -> Plough OldUns | E9: =INDIRECT(CONCATENATE("'",$D9,"'!$F9")) -> 2 | F9: 3 | G9: =INDIRECT(CONCATENATE("'",$D9,"'!H9")) -> 47 | H9: =INDIRECT(CONCATENATE("'",$D9,"'!G9")) -> 46 | I9: 0 | J9: Valid Scores entered | K9: OK | L9: OK
A10: =Template!B25 -> 19.06.2017 | B10: 6 | C10: Home | D10: =Template!H25 -> Old Bulls Head | E10: 3 | F10: 2 | G10: 61 | H10: 53 | I10: 1 | J10: Valid Scores entered | K10: OK | L10: OK
A11: =Template!B26 -> 26.06.2017 | B11: 7 | C11: Away | D11: =Template!K26 -> Hen and Chickens | E11: =INDIRECT(CONCATENATE("'",$D11,"'!$F11")) -> 2 | F11: 3 | G11: =INDIRECT(CONCATENATE("'",$D11,"'!H11")) -> 53 | H11: =INDIRECT(CONCATENATE("'",$D11,"'!G11")) -> 59 | I11: 0 | J11: Valid Scores entered | K11: OK | L11: OK
A12: =Template!B27 -> 03.07.2017 | B12: 8 | C12: Away | D12: =Template!E27 -> George Bees | E12: =INDIRECT(CONCATENATE("'",$D12,"'!$F12")) -> 0 | F12: 5 | G12: =INDIRECT(CONCATENATE("'",$D12,"'!H12")) -> 26 | H12: =INDIRECT(CONCATENATE("'",$D12,"'!G12")) -> 65 | I12: 0 | J12: Valid Scores entered | K12: OK | L12: OK
A13: =Template!B28 -> 10.07.2017 | B13: 9 | C13: Home | D13: =Template!F28 -> Drifters | E13: 4 | F13: 1 | G13: 61 | H13: 37 | I13: 1 | J13: Valid Scores entered | K13: OK | L13: OK
A14: =Template!B29 -> 17.07.2017 | B14: 10 | C14: Home | D14: =Template!J29 -> Bye
A15: =Template!B30 -> 24.07.2017 | B15: 11 | C15: Away | D15: =Template!G30 -> Bye2 | E15: =INDIRECT(CONCATENATE("'",$D15,"'!$F15")) ->  | G15: =INDIRECT(CONCATENATE("'",$D15,"'!H15")) -> 0 | H15: =INDIRECT(CONCATENATE("'",$D15,"'!G15")) -> 0
A16: =Template!B31 -> 31.07.2017 | B16: 12 | C16: Home | D16: =Template!F31 -> Brown Bear | E16: 4 | F16: 1 | G16: 53 | H16: 37 | I16: 1 | J16: Valid Scores entered | K16: OK | L16: OK
A17: =Template!B32 -> 07.08.2017 | B17: 13 | C17: Away | D17: =Template!C32 -> George A | E17: =INDIRECT(CONCATENATE("'",$D17,"'!$F17")) -> 3 | F17: 2 | G17: =INDIRECT(CONCATENATE("'",$D17,"'!H17")) -> 52 | H17: =INDIRECT(CONCATENATE("'",$D17,"'!G17")) -> 42 | I17: 1 | J17: Valid Scores entered | K17: OK | L17: OK
A18: =Template!B33 -> 14.08.2017 | B18: 14 | C18: Home | D18: =Template!J33 -> Plough OldUns | E18: 5 | F18: 0 | G18: 65 | H18: 39 | I18: 1 | J18: Valid Scores entered | K18: OK | L18: OK
A19: =Template!B34 -> 21.08.2017 | B19: 15 | C19: Away | D19: =Template!G34 -> Old Bulls Head | E19: =INDIRECT(CONCATENATE("'",$D19,"'!$F19")) -> 3 | F19: 2 | G19: =INDIRECT(CONCATENATE("'",$D19,"'!H19")) -> 57 | H19: =INDIRECT(CONCATENATE("'",$D19,"'!G19")) -> 50 | I19: 1 | J19: Valid Scores entered | K19: OK | L19: OK
A20: =Template!B35 -> 04.09.2017 | B20: 16 | C20: Home | D20: =Template!L35 -> Hen and Chickens | E20: 4 | F20: 1 | G20: 64 | H20: 38 | I20: 1 | J20: Valid Scores entered | K20: OK | L20: OK
A21: =Template!B36 -> 11.09.2017 | B21: 17 | C21: Home | D21: =Template!F36 -> George Bees | E21: 1 | F21: 4 | G21: 43 | H21: 61 | I21: 0 | J21: Valid Scores entered | K21: OK | L21: OK
A22: =Template!B37 -> 18.09.2017 | B22: 18 | C22: Away | D22: =Template!E37 -> Drifters | E22: =INDIRECT(CONCATENATE("'",$D22,"'!$F22")) -> 2 | F22: 3 | G22: =INDIRECT(CONCATENATE("'",$D22,"'!H22")) -> 38 | H22: =INDIRECT(CONCATENATE("'",$D22,"'!G22")) -> 57 | I22: 0 | J22: Valid Scores entered | K22: OK | L22: OK
C23: =CONCATENATE("Home Games:",COUNTIF(C5:C22,"Home")," Away Games:",COUNTIF(C5:C22,"Away")) -> Home Games:9 Away Games:9

Sheet Old Bulls Head
A2: Team | B2: =Template!B9 -> Old Bulls Head
K3: Check that there are enough points to win the games
A4: Date | B4: Week | C4: Home/Away | D4: Opponent | E4: Games Won | F4: Games lost | G4: Points For | H4: Points Against | I4: Match Won? | J4: Check that input numbers are within range | K4: Home | L4: Away
A5: =Template!B20 -> 08.05.2017 | B5: 1 | C5: Away | D5: =Template!G20 -> Bye2 | E5: =INDIRECT(CONCATENATE("'",$D5,"'!$F5")) ->  | F5: =IF(E5="","",5-E5) ->  | G5: =INDIRECT(CONCATENATE("'",$D5,"'!H5")) -> 0 | H5: =INDIRECT(CONCATENATE("'",$D5,"'!G5")) -> 0 | I5: =IF(E5="","",IF(E5>2,1,0)) ->  | J5: =IF(E5="","",IF(OR(E5<0,E5>5,G5<0,G5>(5*13),H5<0,H5>(5*13)),"Number out of range error","Valid Scores entered")) ->  | K5: =IF(E5="","",IF((E5*13>G5),"Error in submitting Games Won or Points Home","OK")) ->  | L5: =IF(E5="","",IF((F5*13>H5),"Error in submitting Games Won or Points Away","OK")) -> 
A6: =Template!B21 -> 15.05.2017 | B6: =B5+1 -> 2 | C6: Home | D6: =Template!F21 -> Brown Bear | E6: 3 | F6: 2 | G6: 50 | H6: 56 | I6: =IF(E6="","",IF(E6>2,1,0)) -> 1 | J6: =IF(E6="","",IF(OR(E6<0,E6>5,G6<0,G6>(5*13),H6<0,H6>(5*13)),"Number out of range error","Valid Scores entered")) -> Valid Scores entered | K6: =IF(E6="","",IF((E6*13>G6),"Error in submitting Games Won or Points Home","OK")) -> OK | L6: =IF(E6="","",IF((F6*13>H6),"Error in submitting Games Won or Points Away","OK")) -> OK
A7: =Template!B22 -> 22.05.2017 | B7: =B6+1 -> 3 | C7: Away | D7: =Template!C22 -> George A | E7: =INDIRECT(CONCATENATE("'",$D7,"'!$F7")) -> 3 | F7: 2 | G7: =INDIRECT(CONCATENATE("'",$D7,"'!H7")) -> 48 | H7: =INDIRECT(CONCATENATE("'",$D7,"'!G7")) -> 52 | I7: 1 | J7: Valid Scores entered | K7: OK | L7: OK
A8: =Template!B23 -> 05.06.2017 | B8: 4 | C8: Home | D8: =Template!J23 -> Plough OldUns | E8: 3 | F8: 2 | G8: 44 | H8: 57 | I8: 1 | J8: Valid Scores entered | K8: OK | L8: OK
A9: =Template!B24 -> 12.06.2017 | B9: 5 | C9: Away | D9: =Template!K24 -> Hen and Chickens | E9: =INDIRECT(CONCATENATE("'",$D9,"'!$F9")) -> 4 | F9: 1 | G9: =INDIRECT(CONCATENATE("'",$D9,"'!H9")) -> 58 | H9: =INDIRECT(CONCATENATE("'",$D9,"'!G9")) -> 32 | I9: 1 | J9: Valid Scores entered | K9: OK | L9: OK
A10: =Template!B25 -> 19.06.2017 | B10: 6 | C10: Away | D10: =Template!G25 -> Farmers Boy | E10: =INDIRECT(CONCATENATE("'",$D10,"'!$F10")) -> 2 | F10: 3 | G10: =INDIRECT(CONCATENATE("'",$D10,"'!H10")) -> 53 | H10: =INDIRECT(CONCATENATE("'",$D10,"'!G10")) -> 61 | I10: 0 | J10: Valid Scores entered | K10: OK | L10: OK
A11: =Template!B26 -> 26.06.2017 | B11: 7 | C11: Home | D11: =Template!H26 -> George Bees | E11: 3 | F11: 2 | G11: 51 | H11: 49 | I11: 1 | J11: Valid Scores entered | K11: OK | L11: OK
A12: =Template!B27 -> 03.07.2017 | B12: 8 | C12: Away | D12: =Template!G27 -> Drifters | E12: =INDIRECT(CONCATENATE("'",$D12,"'!$F12")) -> 0 | F12: 5 | G12: =INDIRECT(CONCATENATE("'",$D12,"'!H12")) -> 35 | H12: =INDIRECT(CONCATENATE("'",$D12,"'!G12")) -> 65 | I12: 0 | J12: Valid Scores entered | K12: OK | L12: OK
A13: =Template!B28 -> 10.07.2017 | B13: 9 | C13: Home | D13: =Template!H28 -> Bye
A14: =Template!B29 -> 17.07.2017 | B14: 10 | C14: Home | D14: =Template!H29 -> Bye2
A15: =Template!B30 -> 24.07.2017 | B15: 11 | C15: Away | D15: =Template!E30 -> Brown Bear | E15: =INDIRECT(CONCATENATE("'",$D15,"'!$F15")) -> 4 | F15: 1 | G15: =INDIRECT(CONCATENATE("'",$D15,"'!H15")) -> 64 | H15: =INDIRECT(CONCATENATE("'",$D15,"'!G15")) -> 54 | I15: 1 | J15: Valid Scores entered | K15: OK | L15: OK
A16: =Template!B31 -> 31.07.2017 | B16: 12 | C16: Home | D16: =Template!D31 -> George A | E16: 4 | F16: 1 | G16: 59 | H16: 23 | I16: 1 | J16: Valid Scores entered | K16: OK | L16: OK
A17: =Template!B32 -> 07.08.2017 | B17: 13 | C17: Away | D17: =Template!I32 -> Plough OldUns | E17: =INDIRECT(CONCATENATE("'",$D17,"'!$F17")) -> 1 | F17: 4 | G17: =INDIRECT(CONCATENATE("'",$D17,"'!H17")) -> 45 | H17: =INDIRECT(CONCATENATE("'",$D17,"'!G17")) -> 55 | I17: 0 | J17: Valid Scores entered | K17: OK | L17: OK
A18: =Template!B33 -> 14.08.2017 | B18: 14 | C18: Home | D18: =Template!L33 -> Hen and Chickens | E18: 3 | F18: 2 | G18: 58 | H18: 42 | I18: 1 | J18: Valid Scores entered | K18: OK | L18: OK
A19: =Template!B34 -> 21.08.2017 | B19: 15 | C19: Home | D19: =Template!H34 -> Farmers Boy | E19: 2 | F19: 3 | G19: 50 | H19: 57 | I19: 0 | J19: Valid Scores entered | K19: OK | L19: OK
A20: =Template!B35 -> 04.09.2017 | B20: 16 | C20: Away | D20: =Template!G35 -> George Bees | E20: =INDIRECT(CONCATENATE("'",$D20,"'!$F20")) -> 3 | F20: 2 | G20: =INDIRECT(CONCATENATE("'",$D20,"'!H20")) -> 57 | H20: =INDIRECT(CONCATENATE("'",$D20,"'!G20")) -> 37 | I20: 1 | J20: Valid Scores entered | K20: OK | L20: OK
A21: =Template!B36 -> 11.09.2017 | B21: 17 | C21: Home | D21: =Template!H36 -> Drifters | E21: 3 | F21: 2 | G21: 63 | H21: 43 | I21: 1 | J21: Valid Scores entered | K21: OK | L21: OK
A22: =Template!B37 -> 18.09.2017 | B22: 18 | C22: Away | D22: =Template!G37 -> Bye | E22: =INDIRECT(CONCATENATE("'",$D22,"'!$F22")) ->  | G22: =INDIRECT(CONCATENATE("'",$D22,"'!H22")) -> 0 | H22: =INDIRECT(CONCATENATE("'",$D22,"'!G22")) -> 0
C23: =CONCATENATE("Home Games:",COUNTIF(C5:C22,"Home")," Away Games:",COUNTIF(C5:C22,"Away")) -> Home Games:9 Away Games:9

Sheet Plough OldUns
A2: Team | B2: =Template!B10 -> Plough OldUns
K3: Check that there are enough points to win the games
A4: Date | B4: Week | C4: Home/Away | D4: Opponent | E4: Games Won | F4: Games lost | G4: Points For | H4: Points Against | I4: Match Won? | J4: Check that input numbers are within range | K4: Home | L4: Away
A5: =Template!B20 -> 08.05.2017 | B5: 1 | C5: Away | D5: =Template!E20 -> Brown Bear | E5: =INDIRECT(CONCATENATE("'",$D5,"'!$F5")) -> 3 | F5: =IF(E5="","",5-E5) -> 2 | G5: =INDIRECT(CONCATENATE("'",$D5,"'!H5")) -> 61 | H5: =INDIRECT(CONCATENATE("'",$D5,"'!G5")) -> 53 | I5: =IF(E5="","",IF(E5>2,1,0)) -> 1 | J5: =IF(E5="","",IF(OR(E5<0,E5>5,G5<0,G5>(5*13),H5<0,H5>(5*13)),"Number out of range error","Valid Scores entered")) -> Valid Scores entered | K5: =IF(E5="","",IF((E5*13>G5),"Error in submitting Games Won or Points Home","OK")) -> OK | L5: =IF(E5="","",IF((F5*13>H5),"Error in submitting Games Won or Points Away","OK")) -> OK
A6: =Template!B21 -> 15.05.2017 | B6: =B5+1 -> 2 | C6: Home | D6: =Template!D21 -> George A | I6: =IF(E6="","",IF(E6>2,1,0)) ->  | J6: =IF(E6="","",IF(OR(E6<0,E6>5,G6<0,G6>(5*13),H6<0,H6>(5*13)),"Number out of range error","Valid Scores entered")) ->  | K6: =IF(E6="","",IF((E6*13>G6),"Error in submitting Games Won or Points Home","OK")) ->  | L6: =IF(E6="","",IF((F6*13>H6),"Error in submitting Games Won or Points Away","OK")) -> 
A7: =Template!B22 -> 22.05.2017 | B7: =B6+1 -> 3 | C7: Away | D7: =Template!K22 -> Hen and Chickens | E7: =INDIRECT(CONCATENATE("'",$D7,"'!$F7")) -> 2 | F7: 3 | G7: =INDIRECT(CONCATENATE("'",$D7,"'!H7")) -> 42 | H7: =INDIRECT(CONCATENATE("'",$D7,"'!G7")) -> 58 | I7: 0 | J7: Valid Scores entered | K7: OK | L7: OK
A8: =Template!B23 -> 05.06.2017 | B8: 4 | C8: Away | D8: =Template!I23 -> Old Bulls Head | E8: =INDIRECT(CONCATENATE("'",$D8,"'!$F8")) -> 2 | F8: 3 | G8: =INDIRECT(CONCATENATE("'",$D8,"'!H8")) -> 57 | H8: =INDIRECT(CONCATENATE("'",$D8,"'!G8")) -> 44 | I8: 0 | J8: Valid Scores entered | K8: OK | L8: OK
A9: =Template!B24 -> 12.06.2017 | B9: 5 | C9: Home | D9: =Template!J24 -> Farmers Boy | E9: 3 | F9: 2 | G9: 46 | H9: 47 | I9: 1 | J9: Valid Scores entered | K9: OK | L9: OK
A10: =Template!B25 -> 19.06.2017 | B10: 6 | C10: Away | D10: =Template!I25 -> George Bees | E10: =INDIRECT(CONCATENATE("'",$D10,"'!$F10")) -> 1 | F10: 4 | G10: =INDIRECT(CONCATENATE("'",$D10,"'!H10")) -> 40 | H10: =INDIRECT(CONCATENATE("'",$D10,"'!G10")) -> 59 | I10: 0 | J10: Valid Scores entered | K10: OK | L10: OK
A11: =Template!B26 -> 26.06.2017 | B11: 7 | C11: Home | D11: =Template!J26 -> Drifters | E11: 3 | F11: 2 | G11: 59 | H11: 47 | I11: 1 | J11: Valid Scores entered | K11: OK | L11: OK
A12: =Template!B27 -> 03.07.2017 | B12: 8 | C12: Away | D12: =Template!I27 -> Bye | E12: =INDIRECT(CONCATENATE("'",$D12,"'!$F12")) ->  | F12: =IF(E12="","",5-E12) ->  | G12: =INDIRECT(CONCATENATE("'",$D12,"'!H12")) -> 0 | H12: =INDIRECT(CONCATENATE("'",$D12,"'!G12")) -> 0
A13: =Template!B28 -> 10.07.2017 | B13: 9 | C13: Home | D13: =Template!J28 -> Bye2
A14: =Template!B29 -> 17.07.2017 | B14: 10 | C14: Home | D14: =Template!F29 -> Brown Bear | E14: 1 | F14: 4 | G14: 40 | H14: 58 | I14: 0 | J14: Valid Scores entered | K14: OK | L14: OK
A15: =Template!B30 -> 24.07.2017 | B15: 11 | C15: Away | D15: =Template!C30 -> George A | E15: =INDIRECT(CONCATENATE("'",$D15,"'!$F15")) -> 2 | F15: 3 | G15: =INDIRECT(CONCATENATE("'",$D15,"'!H15")) -> 52 | H15: =INDIRECT(CONCATENATE("'",$D15,"'!G15")) -> 42 | I15: 0 | J15: Valid Scores entered | K15: OK | L15: OK
A16: =Template!B31 -> 31.07.2017 | B16: 12 | C16: Home | D16: =Template!L31 -> Hen and Chickens | E16: 5 | F16: 0 | G16: 65 | H16: 33 | I16: 1 | J16: Valid Scores entered | K16: OK | L16: OK
A17: =Template!B32 -> 07.08.2017 | B17: 13 | C17: Home | D17: =Template!J32 -> Old Bulls Head | E17: 4 | F17: 1 | G17: 55 | H17: 45 | I17: 1 | J17: Valid Scores entered | K17: OK | L17: OK
A18: =Template!B33 -> 14.08.2017 | B18: 14 | C18: Away | D18: =Template!I33 -> Farmers Boy | E18: =INDIRECT(CONCATENATE("'",$D18,"'!$F18")) -> 0 | F18: 5 | G18: =INDIRECT(CONCATENATE("'",$D18,"'!H18")) -> 39 | H18: =INDIRECT(CONCATENATE("'",$D18,"'!G18")) -> 65 | I18: 0 | J18: Valid Scores entered | K18: OK | L18: OK
A19: =Template!B34 -> 21.08.2017 | B19: 15 | C19: Home | D19: =Template!J34 -> George Bees | E19: 3 | F19: 2 | G19: 51 | H19: 49 | I19: 1 | J19: Valid Scores entered | K19: OK | L19: OK
A20: =Template!B35 -> 04.09.2017 | B20: 16 | C20: Away | D20: =Template!I35 -> Drifters | E20: =INDIRECT(CONCATENATE("'",$D20,"'!$F20")) -> 1 | F20: 4 | G20: =INDIRECT(CONCATENATE("'",$D20,"'!H20")) -> 43 | H20: =INDIRECT(CONCATENATE("'",$D20,"'!G20")) -> 55 | I20: 0 | J20: Valid Scores entered | K20: OK | L20: OK
A21: =Template!B36 -> 11.09.2017 | B21: 17 | C21: Home | D21: =Template!J36 -> Bye
A22: =Template!B37 -> 18.09.2017 | B22: 18 | C22: Away | D22: =Template!I37 -> Bye2 | E22: =INDIRECT(CONCATENATE("'",$D22,"'!$F22")) ->  | G22: =INDIRECT(CONCATENATE("'",$D22,"'!H22")) -> 0 | H22: =INDIRECT(CONCATENATE("'",$D22,"'!G22")) -> 0
C23: =CONCATENATE("Home Games:",COUNTIF(C5:C22,"Home")," Away Games:",COUNTIF(C5:C22,"Away")) -> Home Games:9 Away Games:9

Sheet Hen and Chickens
A2: Team | B2: =Template!B11 -> Hen and Chickens
K3: Check that there are enough points to win the games
A4: Date | B4: Week | C4: Home/Away | D4: Opponent | E4: Games Won | F4: Games lost | G4: Points For | H4: Points Against | I4: Match Won? | J4: Check that input numbers are within range | K4: Home | L4: Away
A5: =Template!B20 -> 08.05.2017 | B5: 1 | C5: Away | D5: =Template!C20 -> George A | E5: =INDIRECT(CONCATENATE("'",$D5,"'!$F5")) -> 3 | F5: =IF(E5="","",5-E5) -> 2 | G5: =INDIRECT(CONCATENATE("'",$D5,"'!H5")) -> 54 | H5: =INDIRECT(CONCATENATE("'",$D5,"'!G5")) -> 46 | I5: =IF(E5="","",IF(E5>2,1,0)) -> 1 | J5: =IF(E5="","",IF(OR(E5<0,E5>5,G5<0,G5>(5*13),H5<0,H5>(5*13)),"Number out of range error","Valid Scores entered")) -> Valid Scores entered | K5: =IF(E5="","",IF((E5*13>G5),"Error in submitting Games Won or Points Home","OK")) -> OK | L5: =IF(E5="","",IF((F5*13>H5),"Error in submitting Games Won or Points Away","OK")) -> OK
A6: =Template!B21 -> 15.05.2017 | B6: =B5+1 -> 2 | C6: Home | D6: =Template!L21 -> Drifters | E6: 2 | F6: 3 | G6: 40 | H6: 50 | I6: =IF(E6="","",IF(E6>2,1,0)) -> 0 | J6: =IF(E6="","",IF(OR(E6<0,E6>5,G6<0,G6>(5*13),H6<0,H6>(5*13)),"Number out of range error","Valid Scores entered")) -> Valid Scores entered | K6: =IF(E6="","",IF((E6*13>G6),"Error in submitting Games Won or Points Home","OK")) -> OK | L6: =IF(E6="","",IF((F6*13>H6),"Error in submitting Games Won or Points Away","OK")) -> OK
A7: =Template!B22 -> 22.05.2017 | B7: =B6+1 -> 3 | C7: Home | D7: =Template!L22 -> Plough OldUns | E7: 3 | F7: 2 | G7: 58 | H7: 42 | I7: 1 | J7: Valid Scores entered | K7: OK | L7: OK
A8: =Template!B23 -> 05.06.2017 | B8: 4 | C8: Away | D8: =Template!K23 -> Bye | E8: =INDIRECT(CONCATENATE("'",$D8,"'!$F8")) ->  | G8: =INDIRECT(CONCATENATE("'",$D8,"'!H8")) -> 0 | H8: =INDIRECT(CONCATENATE("'",$D8,"'!G8")) -> 0
A9: =Template!B24 -> 12.06.2017 | B9: 5 | C9: Home | D9: =Template!L24 -> Old Bulls Head | E9: 1 | F9: 4 | G9: 32 | H9: 58 | I9: 0 | J9: Valid Scores entered | K9: OK | L9: OK
A10: =Template!B25 -> 19.06.2017 | B10: 6 | C10: Away | D10: =Template!K25 -> Bye2 | E10: =INDIRECT(CONCATENATE("'",$D10,"'!$F10")) ->  | G10: =INDIRECT(CONCATENATE("'",$D10,"'!H10")) -> 0 | H10: =INDIRECT(CONCATENATE("'",$D10,"'!G10")) -> 0
A11: =Template!B26 -> 26.06.2017 | B11: 7 | C11: Home | D11: =Template!L26 -> Farmers Boy | E11: 3 | F11: 2 | G11: 59 | H11: 53 | I11: 1 | J11: Valid Scores entered | K11: OK | L11: OK
A12: =Template!B27 -> 03.07.2017 | B12: 8 | C12: Away | D12: =Template!K27 -> Brown Bear | E12: =INDIRECT(CONCATENATE("'",$D12,"'!$F12")) -> 1 | F12: 4 | G12: =INDIRECT(CONCATENATE("'",$D12,"'!H12")) -> 45 | H12: =INDIRECT(CONCATENATE("'",$D12,"'!G12")) -> 59 | I12: 0 | J12: Valid Scores entered | K12: OK | L12: OK
A13: =Template!B28 -> 10.07.2017 | B13: 9 | C13: Home | D13: =Template!L28 -> George Bees | E13: 4 | F13: 1 | G13: 52 | H13: 41 | I13: 1 | J13: Valid Scores entered | K13: OK | L13: OK
A14: =Template!B29 -> 17.07.2017 | B14: 10 | C14: Home | D14: =Template!D29 -> George A | E14: 3 | F14: 2 | G14: 56 | H14: 48 | I14: 1 | J14: Valid Scores entered | K14: OK | L14: OK
A15: =Template!B30 -> 24.07.2017 | B15: 11 | C15: Away | D15: =Template!K30 -> Drifters | E15: =INDIRECT(CONCATENATE("'",$D15,"'!$F15")) -> 2 | F15: 3 | G15: =INDIRECT(CONCATENATE("'",$D15,"'!H15")) -> 44 | H15: =INDIRECT(CONCATENATE("'",$D15,"'!G15")) -> 57 | I15: 0 | J15: Valid Scores entered | K15: OK | L15: OK
A16: =Template!B31 -> 31.07.2017 | B16: 12 | C16: Away | D16: =Template!K31 -> Plough OldUns | E16: =INDIRECT(CONCATENATE("'",$D16,"'!$F16")) -> 0 | F16: 5 | G16: =INDIRECT(CONCATENATE("'",$D16,"'!H16")) -> 33 | H16: =INDIRECT(CONCATENATE("'",$D16,"'!G16")) -> 65 | I16: 0 | J16: Valid Scores entered | K16: OK | L16: OK
A17: =Template!B32 -> 07.08.2017 | B17: 13 | C17: Home | D17: =Template!L32 -> Bye
A18: =Template!B33 -> 14.08.2017 | B18: 14 | C18: Away | D18: =Template!K33 -> Old Bulls Head | E18: =INDIRECT(CONCATENATE("'",$D18,"'!$F18")) -> 2 | F18: 3 | G18: =INDIRECT(CONCATENATE("'",$D18,"'!H18")) -> 42 | H18: =INDIRECT(CONCATENATE("'",$D18,"'!G18")) -> 58 | I18: 0 | J18: Valid Scores entered | K18: OK | L18: OK
A19: =Template!B34 -> 21.08.2017 | B19: 15 | C19: Home | D19: =Template!L34 -> Bye2
A20: =Template!B35 -> 04.09.2017 | B20: 16 | C20: Away | D20: =Template!K35 -> Farmers Boy | E20: =INDIRECT(CONCATENATE("'",$D20,"'!$F20")) -> 1 | F20: 4 | G20: =INDIRECT(CONCATENATE("'",$D20,"'!H20")) -> 38 | H20: =INDIRECT(CONCATENATE("'",$D20,"'!G20")) -> 64 | I20: 0 | J20: Valid Scores entered | K20: OK | L20: OK
A21: =Template!B36 -> 11.09.2017 | B21: 17 | C21: Home | D21: =Template!L36 -> Brown Bear | E21: 4 | F21: 1 | G21: 60 | H21: 50 | I21: 1 | J21: Valid Scores entered | K21: OK | L21: OK
A22: =Template!B37 -> 18.09.2017 | B22: 18 | C22: Away | D22: =Template!K37 -> George Bees | E22: =INDIRECT(CONCATENATE("'",$D22,"'!$F22")) -> 1 | F22: 4 | G22: =INDIRECT(CONCATENATE("'",$D22,"'!H22")) -> 22 | H22: =INDIRECT(CONCATENATE("'",$D22,"'!G22")) -> 63 | I22: 0 | J22: Valid Scores entered | K22: OK | L22: OK
C23: =CONCATENATE("Home Games:",COUNTIF(C5:C22,"Home")," Away Games:",COUNTIF(C5:C22,"Away")) -> Home Games:9 Away Games:9

Sheet Template
A1: Team Number | B1: Team Name | C1: Buddy Team
A2: 1 | B2: George A | C2: =B7 -> George Bees
A3: 2 | B3: Brown Bear | C3: =B8 -> Farmers Boy
A4: 3 | B4: Bye2 | C4: =B9 -> Old Bulls Head | F4: The yellow box names are the controls for the spreadsheet. The tab names should match the team names specified here exactly
A5: 4 | B5: Bye | C5: =B10 -> Plough OldUns
A6: 5 | B6: Drifters | C6: =B11 -> Hen and Chickens
A7: 6 | B7: George Bees | C7: =B2 -> George A
A8: 7 | B8: Farmers Boy | C8: =B3 -> Brown Bear
A9: 8 | B9: Old Bulls Head | C9: =B4 -> Bye2
A10: 9 | B10: Plough OldUns | C10: =B5 -> Bye
A11: 10 | B11: Hen and Chickens | C11: =B6 -> Drifters
C18: Match 1 | E18: Match 2 | G18: Match 3 | I18: Match 4 | K18: Match 5
A19: Week | B19: Date | C19: Home | D19: Away | E19: Home | F19: Away | G19: Home | H19: Away | I19: Home | J19: Away | K19: Home | L19: Away
A20: 1 | B20: 08.05.2017 | C20: =B2 -> George A | D20: =B11 -> Hen and Chickens | E20: =B3 -> Brown Bear | F20: =B10 -> Plough OldUns | G20: =B4 -> Bye2 | H20: =B9 -> Old Bulls Head | I20: =B5 -> Bye | J20: =B8 -> Farmers Boy | K20: =B6 -> Drifters | L20: =B7 -> George Bees
A21: 2 | B21: 15.05.2017 | C21: =B10 -> Plough OldUns | D21: =B2 -> George A | E21: =B9 -> Old Bulls Head | F21: =B3 -> Brown Bear | G21: =B8 -> Farmers Boy | H21: =B4 -> Bye2 | I21: =B7 -> George Bees | J21: =B5 -> Bye | K21: =B11 -> Hen and Chickens | L21: =B6 -> Drifters
A22: 3 | B22: 22.05.2017 | C22: =B2 -> George A | D22: =B9 -> Old Bulls Head | E22: =B3 -> Brown Bear | F22: =B8 -> Farmers Boy | G22: =B4 -> Bye2 | H22: =B7 -> George Bees | I22: =B5 -> Bye | J22: =B6 -> Drifters | K22: =B11 -> Hen and Chickens | L22: =B10 -> Plough OldUns
A23: 4 | B23: 05.06.2017 | C23: =B8 -> Farmers Boy | D23: =B2 -> George A | E23: =B7 -> George Bees | F23: =B3 -> Brown Bear | G23: =B6 -> Drifters | H23: =B4 -> Bye2 | I23: =B9 -> Old Bulls Head | J23: =B10 -> Plough OldUns | K23: =B5 -> Bye | L23: =B11 -> Hen and Chickens
A24: 5 | B24: 12.06.2017 | C24: =B2 -> George A | D24: =B7 -> George Bees | E24: =B3 -> Brown Bear | F24: =B6 -> Drifters | G24: =B4 -> Bye2 | H24: =B5 -> Bye | I24: =B10 -> Plough OldUns | J24: =B8 -> Farmers Boy | K24: =B11 -> Hen and Chickens | L24: =B9 -> Old Bulls Head
A25: 6 | B25: 19.06.2017 | C25: =B6 -> Drifters | D25: =B2 -> George A | E25: =B5 -> Bye | F25: =B3 -> Brown Bear | G25: =B8 -> Farmers Boy | H25: =B9 -> Old Bulls Head | I25: =B7 -> George Bees | J25: =B10 -> Plough OldUns | K25: =B4 -> Bye2 | L25: =B11 -> Hen and Chickens
A26: 7 | B26: 26.06.2017 | C26: =B2 -> George A | D26: =B5 -> Bye | E26: =B3 -> Brown Bear | F26: =B4 -> Bye2 | G26: =B9 -> Old Bulls Head | H26: =B7 -> George Bees | I26: =B10 -> Plough OldUns | J26: =B6 -> Drifters | K26: =B11 -> Hen and Chickens | L26: =B8 -> Farmers Boy
A27: 8 | B27: 03.07.2017 | C27: =B4 -> Bye2 | D27: =B2 -> George A | E27: =B7 -> George Bees | F27: =B8 -> Farmers Boy | G27: =B6 -> Drifters | H27: =B9 -> Old Bulls Head | I27: =B5 -> Bye | J27: =B10 -> Plough OldUns | K27: =B3 -> Brown Bear | L27: =B11 -> Hen and Chickens
A28: 9 | B28: 10.07.2017 | C28: =B2 -> George A | D28: =B3 -> Brown Bear | E28: =B8 -> Farmers Boy | F28: =B6 -> Drifters | G28: =B9 -> Old Bulls Head | H28: =B5 -> Bye | I28: =B10 -> Plough OldUns | J28: =B4 -> Bye2 | K28: =B11 -> Hen and Chickens | L28: =B7 -> George Bees
A29: 10 | B29: 17.07.2017 | C29: =B11 -> Hen and Chickens | D29: =B2 -> George A | E29: =B10 -> Plough OldUns | F29: =B3 -> Brown Bear | G29: =B9 -> Old Bulls Head | H29: =B4 -> Bye2 | I29: =B8 -> Farmers Boy | J29: =B5 -> Bye | K29: =B7 -> George Bees | L29: =B6 -> Drifters
A30: 11 | B30: 24.07.2017 | C30: =B2 -> George A | D30: =B10 -> Plough OldUns | E30: =B3 -> Brown Bear | F30: =B9 -> Old Bulls Head | G30: =B4 -> Bye2 | H30: =B8 -> Farmers Boy | I30: =B5 -> Bye | J30: =B7 -> George Bees | K30: =B6 -> Drifters | L30: =B11 -> Hen and Chickens
A31: 12 | B31: 31.07.2017 | C31: =B9 -> Old Bulls Head | D31: =B2 -> George A | E31: =B8 -> Farmers Boy | F31: =B3 -> Brown Bear | G31: =B7 -> George Bees | H31: =B4 -> Bye2 | I31: =B6 -> Drifters | J31: =B5 -> Bye | K31: =B10 -> Plough OldUns | L31: =B11 -> Hen and Chickens
A32: 13 | B32: 07.08.2017 | C32: =B2 -> George A | D32: =B8 -> Farmers Boy | E32: =B3 -> Brown Bear | F32: =B7 -> George Bees | G32: =B4 -> Bye2 | H32: =B6 -> Drifters | I32: =B10 -> Plough OldUns | J32: =B9 -> Old Bulls Head | K32: =B11 -> Hen and Chickens | L32: =B5 -> Bye
A33: 14 | B33: 14.08.2017 | C33: =B7 -> George Bees | D33: =B2 -> George A | E33: =B6 -> Drifters | F33: =B3 -> Brown Bear | G33: =B5 -> Bye | H33: =B4 -> Bye2 | I33: =B8 -> Farmers Boy | J33: =B10 -> Plough OldUns | K33: =B9 -> Old Bulls Head | L33: =B11 -> Hen and Chickens
A34: 15 | B34: 21.08.2017 | C34: =B2 -> George A | D34: =B6 -> Drifters | E34: =B3 -> Brown Bear | F34: =B5 -> Bye | G34: =B9 -> Old Bulls Head | H34: =B8 -> Farmers Boy | I34: =B10 -> Plough OldUns | J34: =B7 -> George Bees | K34: =B11 -> Hen and Chickens | L34: =B4 -> Bye2
A35: 16 | B35: 04.09.2017 | C35: =B5 -> Bye | D35: =B2 -> George A | E35: =B4 -> Bye2 | F35: =B3 -> Brown Bear | G35: =B7 -> George Bees | H35: =B9 -> Old Bulls Head | I35: =B6 -> Drifters | J35: =B10 -> Plough OldUns | K35: =B8 -> Farmers Boy | L35: =B11 -> Hen and Chickens
A36: 17 | B36: 11.09.2017 | C36: =B2 -> George A | D36: =B4 -> Bye2 | E36: =B8 -> Farmers Boy | F36: =B7 -> George Bees | G36: =B9 -> Old Bulls Head | H36: =B6 -> Drifters | I36: =B10 -> Plough OldUns | J36: =C10 -> Bye | K36: =B11 -> Hen and Chickens | L36: =B3 -> Brown Bear
A37: 18 | B37: 18.09.2017 | C37: =B3 -> Brown Bear | D37: =B2 -> George A | E37: =B6 -> Drifters | F37: =B8 -> Farmers Boy | G37: =B5 -> Bye | H37: =B9 -> Old Bulls Head | I37: =B4 -> Bye2 | J37: =B10 -> Plough OldUns | K37: =B7 -> George Bees | L37: =B11 -> Hen and Chickens
A38: CATCHUP | B38: 25.09.2017
A39: CATCHUP | B39: 02.10.2017
A40: ALL GAMES PLAYED BY | B40: 09.10.2017
